[Event "Titled Tuesday Blitz November 08 Late 2022"]
[White "Annaberdiyev, Babageldi"]
[Black "Brown, Andrew"]
[WhiteFideId "14000385"]
[BlackFideId "3206513"]
[WhiteElo "2332"]
[BlackElo "2245"]
[Result "0-1"]
[Round "10"]
[TimeControl "180+1"]
[Date "2022.11.09"]
[WhiteClock "0:00:43"]
[BlackClock "0:00:06"]

1. e4 {[%clk 0:03:00]}  g6 {[%clk 0:02:57]} 2. d4 {[%clk 0:03:00]}  Bg7 {[%clk 0:02:57]} 3. Nc3 {[%clk 0:03:01]}  c6 {[%clk 0:02:54]} 4. h3 {[%clk 0:02:59]}  d5 {[%clk 0:02:45]} 5. a4 {[%clk 0:02:58]}  dxe4 {[%clk 0:02:43]} 6. d5 {[%clk 0:02:57]}  Bxc3+ {[%clk 0:02:38]} 7. bxc3 {[%clk 0:02:57]}  Qxd5 {[%clk 0:02:34]} 8. Be3 {[%clk 0:02:48]}  Qxd1+ {[%clk 0:02:29]} 9. Rxd1 {[%clk 0:02:49]}  f5 {[%clk 0:02:20]} 10. g3 {[%clk 0:02:47]}  Nf6 {[%clk 0:02:20]} 11. c4 {[%clk 0:02:45]}  Be6 {[%clk 0:02:17]} 12. Rb1 {[%clk 0:02:43]}  b6 {[%clk 0:02:10]} 13. Ne2 {[%clk 0:02:42]}  Bxc4 {[%clk 0:02:06]} 14. a5 {[%clk 0:02:29]}  bxa5 {[%clk 0:01:58]} 15. Rb7 {[%clk 0:02:20]}  Nbd7 {[%clk 0:01:57]} 16. Nd4 {[%clk 0:02:15]}  Bxf1 {[%clk 0:01:55]} 17. Kxf1 {[%clk 0:02:16]}  c5 {[%clk 0:01:24]} 18. Ne6 {[%clk 0:02:14]}  Kf7 {[%clk 0:01:22]} 19. Ng5+ {[%clk 0:02:13]}  Kg8 {[%clk 0:01:10]} 20. Kg2 {[%clk 0:02:08]}  h6 {[%clk 0:01:10]} 21. Ne6 {[%clk 0:02:07]}  Kf7 {[%clk 0:01:11]} 22. Nxc5 {[%clk 0:02:07]}  Nxc5 {[%clk 0:01:11]} 23. Bxc5 {[%clk 0:02:08]}  Rhe8 {[%clk 0:00:52]} 24. Ra1 {[%clk 0:02:06]}  a6 {[%clk 0:00:34]} 25. Rxa5 {[%clk 0:02:05]}  Rac8 {[%clk 0:00:34]} 26. Bd4 {[%clk 0:01:57]}  Rc6 {[%clk 0:00:20]} 27. c4 {[%clk 0:01:48]}  Rd8 {[%clk 0:00:18]} 28. Bc5 {[%clk 0:01:48]}  Rd7 {[%clk 0:00:17]} 29. Rb6 {[%clk 0:01:43]}  Rxb6 {[%clk 0:00:14]} 30. Bxb6 {[%clk 0:01:44]}  Rd2 {[%clk 0:00:13]} 31. Rxa6 {[%clk 0:01:43]}  Rc2 {[%clk 0:00:14]} 32. Ra4 {[%clk 0:01:37]}  g5 {[%clk 0:00:13]} 33. Be3 {[%clk 0:01:36]}  e5 {[%clk 0:00:13]} 34. Ra7+ {[%clk 0:01:35]}  Kg6 {[%clk 0:00:13]} 35. Bb6 {[%clk 0:01:01]}  Rxc4 {[%clk 0:00:10]} 36. Bd8 {[%clk 0:01:02]}  Rc6 {[%clk 0:00:10]} 37. Ra5 {[%clk 0:00:58]}  Nd7 {[%clk 0:00:09]} 38. Rd5 {[%clk 0:00:57]}  Nc5 {[%clk 0:00:05]} 39. Rxe5 {[%clk 0:00:49]}  Nd3 {[%clk 0:00:05]} 40. Rd5 {[%clk 0:00:50]}  Rc2 {[%clk 0:00:05]} 41. Bb6 {[%clk 0:00:50]}  f4 {[%clk 0:00:06]} 42. gxf4 {[%clk 0:00:50]}  Nxf4+ {[%clk 0:00:05]} 43. Kg3 {[%clk 0:00:47]}  Nxd5 {[%clk 0:00:05]} 44. Bd4 {[%clk 0:00:48]}  Rd2 {[%clk 0:00:05]} 45. Bc5 {[%clk 0:00:48]}  Rc2 {[%clk 0:00:05]} 46. Bd4 {[%clk 0:00:48]}  Rc4 {[%clk 0:00:05]} 47. Be5 {[%clk 0:00:48]}  Nc3 {[%clk 0:00:05]} 48. Bd6 {[%clk 0:00:44]}  Kf5 {[%clk 0:00:06]} 49. Be7 {[%clk 0:00:44]}  Ne2+ {[%clk 0:00:06]} 50. Kg2 {[%clk 0:00:43]}  Nf4+ {[%clk 0:00:06]} 0-1


[Site "https://www.chess.com"]

[Event "Titled Tuesday Blitz November 08 Late 2022"]
[White "Boruchovsky, Avital"]
[Black "Xiong, Jeffery"]
[WhiteFideId "2800055"]
[BlackFideId "2047640"]
[WhiteElo "2458"]
[BlackElo "2725"]
[Result "0-1"]
[Round "10"]
[TimeControl "180+1"]
[Date "2022.11.08"]
[WhiteClock "0:00:01"]
[BlackClock "0:00:02"]

1. e4 {[%clk 0:03:00]}  c5 {[%clk 0:02:59]} 2. Nf3 {[%clk 0:03:00]}  d6 {[%clk 0:03:00]} 3. Bb5+ {[%clk 0:03:00]}  Nc6 {[%clk 0:02:58]} 4. O-O {[%clk 0:02:59]}  Bd7 {[%clk 0:02:58]} 5. Re1 {[%clk 0:03:00]}  Nf6 {[%clk 0:02:58]} 6. c3 {[%clk 0:02:59]}  a6 {[%clk 0:02:59]} 7. Bf1 {[%clk 0:02:59]}  Bg4 {[%clk 0:02:58]} 8. d4 {[%clk 0:03:00]}  Bxf3 {[%clk 0:02:52]} 9. gxf3 {[%clk 0:02:58]}  cxd4 {[%clk 0:02:53]} 10. cxd4 {[%clk 0:02:57]}  d5 {[%clk 0:02:54]} 11. Nc3 {[%clk 0:02:53]}  e6 {[%clk 0:02:53]} 12. Bg5 {[%clk 0:02:52]}  Be7 {[%clk 0:02:48]} 13. Bxf6 {[%clk 0:02:51]}  Bxf6 {[%clk 0:02:49]} 14. exd5 {[%clk 0:02:51]}  Nxd4 {[%clk 0:02:49]} 15. Re4 {[%clk 0:02:50]}  Nf5 {[%clk 0:02:43]} 16. dxe6 {[%clk 0:02:50]}  O-O {[%clk 0:02:44]} 17. exf7+ {[%clk 0:02:49]}  Kh8 {[%clk 0:02:44]} 18. Qd5 {[%clk 0:02:27]}  Nd6 {[%clk 0:02:37]} 19. Rb4 {[%clk 0:02:13]}  Bxc3 {[%clk 0:02:08]} 20. bxc3 {[%clk 0:02:12]}  Rxf7 {[%clk 0:02:08]} 21. Rd1 {[%clk 0:02:07]}  Rf6 {[%clk 0:02:08]} 22. c4 {[%clk 0:01:41]}  Rg6+ {[%clk 0:02:03]} 23. Kh1 {[%clk 0:01:40]}  Qh4 {[%clk 0:02:02]} 24. Rb2 {[%clk 0:01:17]}  Re8 {[%clk 0:01:48]} 25. c5 {[%clk 0:01:00]}  Ne4 {[%clk 0:00:49]} 26. Qd4 {[%clk 0:00:22]}  h6 {[%clk 0:00:28]} 27. Re2 {[%clk 0:00:16]}  Qg5 {[%clk 0:00:08]} 28. Bh3 {[%clk 0:00:16]}  Ng3+ {[%clk 0:00:08]} 29. hxg3 {[%clk 0:00:15]}  Rxe2 {[%clk 0:00:09]} 30. Qd8+ {[%clk 0:00:14]}  Kh7 {[%clk 0:00:08]} 31. Qd4 {[%clk 0:00:09]}  Qh5 {[%clk 0:00:03]} 32. Kg2 {[%clk 0:00:09]}  Rxa2 {[%clk 0:00:03]} 33. Qe4 {[%clk 0:00:08]}  Qxc5 {[%clk 0:00:03]} 34. Rf1 {[%clk 0:00:04]}  Ra5 {[%clk 0:00:03]} 35. Bg4 {[%clk 0:00:04]}  Qd5 {[%clk 0:00:03]} 36. Qc2 {[%clk 0:00:04]}  Qa2 {[%clk 0:00:03]} 37. Qe4 {[%clk 0:00:02]}  Qd5 {[%clk 0:00:02]} 38. Qc2 {[%clk 0:00:01]}  h5 {[%clk 0:00:03]} 39. Rh1 {[%clk 0:00:01]}  Kg8 {[%clk 0:00:02]} 40. Rxh5 {[%clk 0:00:01]}  Qxf3+ {[%clk 0:00:01]} 41. Bxf3 {[%clk 0:00:01]}  Rf6 {[%clk 0:00:02]} 0-1


[Site "https://www.chess.com"]

[Event "Titled Tuesday Blitz November 08 Late 2022"]
[White "Brodowski, Piotr"]
[Black "Ibarra Jerez, Jose Carlos"]
[WhiteFideId "1124480"]
[BlackFideId "2226332"]
[WhiteElo "2351"]
[BlackElo "2638"]
[Result "0-1"]
[Round "10"]
[TimeControl "180+1"]
[Date "2022.11.08"]
[WhiteClock "0:00:20"]
[BlackClock "0:01:48"]

1. c4 {[%clk 0:02:56]}  e5 {[%clk 0:02:59]} 2. Nc3 {[%clk 0:02:53]}  Nf6 {[%clk 0:02:59]} 3. Nf3 {[%clk 0:02:52]}  e4 {[%clk 0:02:59]} 4. Ng5 {[%clk 0:02:49]}  c6 {[%clk 0:02:59]} 5. Ngxe4 {[%clk 0:02:43]}  Nxe4 {[%clk 0:02:59]} 6. Nxe4 {[%clk 0:02:44]}  d5 {[%clk 0:03:00]} 7. cxd5 {[%clk 0:02:44]}  cxd5 {[%clk 0:03:01]} 8. Ng3 {[%clk 0:02:44]}  h5 {[%clk 0:03:01]} 9. h4 {[%clk 0:02:36]}  Bg4 {[%clk 0:03:00]} 10. Qb3 {[%clk 0:02:23]}  Nc6 {[%clk 0:02:51]} 11. e3 {[%clk 0:02:13]}  Qd7 {[%clk 0:02:35]} 12. d4 {[%clk 0:01:20]}  Bd6 {[%clk 0:02:25]} 13. Ne2 {[%clk 0:01:19]}  Rc8 {[%clk 0:02:12]} 14. Bd2 {[%clk 0:01:18]}  O-O {[%clk 0:02:11]} 15. g3 {[%clk 0:00:54]}  Rfe8 {[%clk 0:02:03]} 16. Rc1 {[%clk 0:00:52]}  Qf5 {[%clk 0:01:57]} 17. Rg1 {[%clk 0:00:39]}  Re7 {[%clk 0:01:53]} 18. Nf4 {[%clk 0:00:21]}  Nxd4 {[%clk 0:01:48]} 19. Rxc8+ {[%clk 0:00:20]}  Qxc8 {[%clk 0:01:48]} 0-1


[Site "https://www.chess.com"]

[Event "Titled Tuesday Blitz November 08 Late 2022"]
[White "Chernomordik, Pavel"]
[Black "Young, Ryan"]
[WhiteFideId "2804530"]
[BlackFideId "2049945"]
[WhiteElo "2192"]
[BlackElo "2293"]
[Result "1-0"]
[Round "10"]
[TimeControl "180+1"]
[Date "2022.11.09"]
[WhiteClock "0:00:42"]
[BlackClock "0:00:05"]

1. e4 {[%clk 0:03:00]}  e5 {[%clk 0:03:00]} 2. Nf3 {[%clk 0:03:00]}  Nc6 {[%clk 0:03:00]} 3. Bb5 {[%clk 0:02:59]}  a6 {[%clk 0:03:01]} 4. Ba4 {[%clk 0:02:59]}  b5 {[%clk 0:03:01]} 5. Bb3 {[%clk 0:02:58]}  Na5 {[%clk 0:03:01]} 6. d4 {[%clk 0:02:52]}  Nxb3 {[%clk 0:02:53]} 7. axb3 {[%clk 0:02:51]}  exd4 {[%clk 0:02:54]} 8. Qxd4 {[%clk 0:02:50]}  Ne7 {[%clk 0:02:51]} 9. Bg5 {[%clk 0:02:44]}  f6 {[%clk 0:02:48]} 10. Bf4 {[%clk 0:02:42]}  Nc6 {[%clk 0:02:44]} 11. Qe3 {[%clk 0:02:40]}  d6 {[%clk 0:02:33]} 12. Nc3 {[%clk 0:02:38]}  Bb7 {[%clk 0:02:31]} 13. O-O-O {[%clk 0:02:32]}  Be7 {[%clk 0:02:15]} 14. Nd5 {[%clk 0:02:29]}  O-O {[%clk 0:02:09]} 15. h4 {[%clk 0:02:28]}  Ne5 {[%clk 0:02:03]} 16. Nd4 {[%clk 0:02:25]}  Qd7 {[%clk 0:01:44]} 17. Nf5 {[%clk 0:02:22]}  Bd8 {[%clk 0:01:18]} 18. h5 {[%clk 0:02:21]}  c6 {[%clk 0:01:07]} 19. Nb6 {[%clk 0:02:18]}  Bxb6 {[%clk 0:01:03]} 20. Qxb6 {[%clk 0:02:17]}  Rab8 {[%clk 0:00:44]} 21. Rxd6 {[%clk 0:02:13]}  Qf7 {[%clk 0:00:39]} 22. Qd4 {[%clk 0:02:12]}  c5 {[%clk 0:00:30]} 23. Qd2 {[%clk 0:02:04]}  Bxe4 {[%clk 0:00:27]} 24. Ng3 {[%clk 0:01:59]}  Bxg2 {[%clk 0:00:20]} 25. Rd1 {[%clk 0:01:54]}  Bf3 {[%clk 0:00:18]} 26. Re1 {[%clk 0:01:53]}  c4 {[%clk 0:00:16]} 27. h6 {[%clk 0:01:44]}  g6 {[%clk 0:00:15]} 28. Bxe5 {[%clk 0:01:39]}  fxe5 {[%clk 0:00:16]} 29. Rd7 {[%clk 0:01:38]}  Qf4 {[%clk 0:00:16]} 30. Re3 {[%clk 0:01:27]}  Bc6 {[%clk 0:00:14]} 31. Rg7+ {[%clk 0:01:23]}  Kh8 {[%clk 0:00:14]} 32. bxc4 {[%clk 0:01:11]}  Qxf2 {[%clk 0:00:14]} 33. c5 {[%clk 0:01:06]}  Qxd2+ {[%clk 0:00:13]} 34. Kxd2 {[%clk 0:01:06]}  Rbd8+ {[%clk 0:00:14]} 35. Kc3 {[%clk 0:01:05]}  Rf3 {[%clk 0:00:12]} 36. Rxf3 {[%clk 0:01:02]}  Bxf3 {[%clk 0:00:13]} 37. Re7 {[%clk 0:01:03]}  e4 {[%clk 0:00:12]} 38. Nxe4 {[%clk 0:01:01]}  Bxe4 {[%clk 0:00:13]} 39. Rxe4 {[%clk 0:01:00]}  Kg8 {[%clk 0:00:14]} 40. Re7 {[%clk 0:00:59]}  g5 {[%clk 0:00:14]} 41. Rg7+ {[%clk 0:00:58]}  Kh8 {[%clk 0:00:14]} 42. Rxg5 {[%clk 0:00:57]}  a5 {[%clk 0:00:14]} 43. c6 {[%clk 0:00:54]}  Rc8 {[%clk 0:00:14]} 44. Rc5 {[%clk 0:00:53]}  b4+ {[%clk 0:00:14]} 45. Kc4 {[%clk 0:00:53]}  Rc7 {[%clk 0:00:15]} 46. Kb5 {[%clk 0:00:52]}  Kg8 {[%clk 0:00:16]} 47. Kb6 {[%clk 0:00:52]}  Rc8 {[%clk 0:00:16]} 48. c7 {[%clk 0:00:51]}  b3 {[%clk 0:00:11]} 49. cxb3 {[%clk 0:00:51]}  a4 {[%clk 0:00:11]} 50. bxa4 {[%clk 0:00:49]}  Kh8 {[%clk 0:00:11]} 51. Rd5 {[%clk 0:00:47]}  Ra8 {[%clk 0:00:04]} 52. Rd8+ {[%clk 0:00:43]}  Rxd8 {[%clk 0:00:05]} 53. cxd8=Q# {[%clk 0:00:42]} 1-0


[Site "https://www.chess.com"]

[Event "Titled Tuesday Blitz November 08 Late 2022"]
[White "Chlpik, Martin"]
[Black "Shapiro, Daniel"]
[WhiteFideId "14923351"]
[BlackFideId "2001780"]
[WhiteElo "2109"]
[BlackElo "2278"]
[Result "1-0"]
[Round "10"]
[TimeControl "180+1"]
[Date "2022.11.09"]
[WhiteClock "0:00:34"]
[BlackClock "0:00:18"]

1. d4 {[%clk 0:03:00]}  Nf6 {[%clk 0:02:59]} 2. c4 {[%clk 0:03:01]}  e6 {[%clk 0:02:58]} 3. Nc3 {[%clk 0:03:00]}  Bb4 {[%clk 0:02:58]} 4. a3 {[%clk 0:03:01]}  Bxc3+ {[%clk 0:02:58]} 5. bxc3 {[%clk 0:03:02]}  d6 {[%clk 0:02:56]} 6. f3 {[%clk 0:02:54]}  Nfd7 {[%clk 0:02:50]} 7. e4 {[%clk 0:02:52]}  e5 {[%clk 0:02:50]} 8. Bd3 {[%clk 0:02:49]}  Nc6 {[%clk 0:02:49]} 9. Ne2 {[%clk 0:02:48]}  b6 {[%clk 0:02:47]} 10. O-O {[%clk 0:02:47]}  Ba6 {[%clk 0:02:46]} 11. f4 {[%clk 0:02:23]}  O-O {[%clk 0:02:41]} 12. Ng3 {[%clk 0:01:37]}  f6 {[%clk 0:01:52]} 13. c5 {[%clk 0:01:12]}  Bxd3 {[%clk 0:01:48]} 14. Qxd3 {[%clk 0:01:11]}  dxc5 {[%clk 0:01:44]} 15. d5 {[%clk 0:01:11]}  Na5 {[%clk 0:01:36]} 16. c4 {[%clk 0:01:03]}  c6 {[%clk 0:01:31]} 17. dxc6 {[%clk 0:00:56]}  Nb8 {[%clk 0:01:02]} 18. Qxd8 {[%clk 0:00:56]}  Rxd8 {[%clk 0:01:03]} 19. c7 {[%clk 0:00:56]}  Rc8 {[%clk 0:01:04]} 20. cxb8=Q {[%clk 0:00:55]}  Raxb8 {[%clk 0:01:04]} 21. fxe5 {[%clk 0:00:54]}  fxe5 {[%clk 0:01:04]} 22. Nf5 {[%clk 0:00:54]}  Rb7 {[%clk 0:00:59]} 23. Nd6 {[%clk 0:00:52]}  Rbc7 {[%clk 0:00:59]} 24. Nxc8 {[%clk 0:00:51]}  Rxc8 {[%clk 0:01:00]} 25. Bg5 {[%clk 0:00:42]}  Nxc4 {[%clk 0:00:58]} 26. Rad1 {[%clk 0:00:42]}  h6 {[%clk 0:00:50]} 27. Bc1 {[%clk 0:00:42]}  b5 {[%clk 0:00:47]} 28. Rd7 {[%clk 0:00:42]}  b4 {[%clk 0:00:29]} 29. Rff7 {[%clk 0:00:38]}  b3 {[%clk 0:00:26]} 30. Rxg7+ {[%clk 0:00:38]}  Kf8 {[%clk 0:00:26]} 31. Bxh6 {[%clk 0:00:35]}  b2 {[%clk 0:00:20]} 32. Rh7+ {[%clk 0:00:35]}  Kg8 {[%clk 0:00:18]} 33. Rdg7+ {[%clk 0:00:34]} 1-0


[Site "https://www.chess.com"]

[Event "Titled Tuesday Blitz November 08 Late 2022"]
[White "D`Arruda, Ricardo D."]
[Black "Dahlgren, James Allen"]
[WhiteFideId "100692"]
[BlackFideId "22256873"]
[WhiteElo "2483"]
[BlackElo "2179"]
[Result "1-0"]
[Round "10"]
[TimeControl "180+1"]
[Date "2022.11.09"]
[WhiteClock "0:00:22"]
[BlackClock "0:00:01"]

1. Nf3 {[%clk 0:03:00]}  d5 {[%clk 0:02:56]} 2. d4 {[%clk 0:03:00]}  Nf6 {[%clk 0:02:55]} 3. g3 {[%clk 0:03:00]}  Bf5 {[%clk 0:02:55]} 4. Bg2 {[%clk 0:03:00]}  e6 {[%clk 0:02:56]} 5. O-O {[%clk 0:03:00]}  c5 {[%clk 0:02:56]} 6. c4 {[%clk 0:02:59]}  Nc6 {[%clk 0:02:56]} 7. Nc3 {[%clk 0:02:59]}  Be7 {[%clk 0:02:55]} 8. cxd5 {[%clk 0:02:57]}  exd5 {[%clk 0:02:56]} 9. dxc5 {[%clk 0:02:55]}  O-O {[%clk 0:02:55]} 10. b3 {[%clk 0:02:54]}  Bxc5 {[%clk 0:02:52]} 11. Bb2 {[%clk 0:02:54]}  Be4 {[%clk 0:02:48]} 12. Rc1 {[%clk 0:02:51]}  Be7 {[%clk 0:02:46]} 13. Nxe4 {[%clk 0:02:46]}  dxe4 {[%clk 0:02:40]} 14. Ng5 {[%clk 0:02:45]}  Re8 {[%clk 0:02:24]} 15. Nxe4 {[%clk 0:02:36]}  Nxe4 {[%clk 0:02:22]} 16. Bxe4 {[%clk 0:02:37]}  Qb6 {[%clk 0:02:13]} 17. Bxc6 {[%clk 0:02:28]}  bxc6 {[%clk 0:02:11]} 18. Qd4 {[%clk 0:02:29]}  Bf6 {[%clk 0:02:05]} 19. Qxb6 {[%clk 0:02:26]}  axb6 {[%clk 0:02:06]} 20. Bxf6 {[%clk 0:02:25]}  gxf6 {[%clk 0:02:06]} 21. e3 {[%clk 0:02:23]}  c5 {[%clk 0:01:59]} 22. a4 {[%clk 0:02:20]}  Red8 {[%clk 0:01:57]} 23. Rfd1 {[%clk 0:02:20]}  Kf8 {[%clk 0:01:56]} 24. Kf1 {[%clk 0:02:20]}  Ke7 {[%clk 0:01:56]} 25. Ke2 {[%clk 0:02:20]}  Ke6 {[%clk 0:01:45]} 26. Rxd8 {[%clk 0:02:18]}  Rxd8 {[%clk 0:01:46]} 27. Rc4 {[%clk 0:02:15]}  Rb8 {[%clk 0:01:43]} 28. Rh4 {[%clk 0:02:14]}  b5 {[%clk 0:01:35]} 29. Rxh7 {[%clk 0:01:34]}  bxa4 {[%clk 0:01:25]} 30. bxa4 {[%clk 0:01:34]}  Rb4 {[%clk 0:01:18]} 31. Rh4 {[%clk 0:01:33]}  c4 {[%clk 0:01:18]} 32. a5 {[%clk 0:01:28]}  Kd5 {[%clk 0:01:14]} 33. Rf4 {[%clk 0:01:17]}  Rb2+ {[%clk 0:01:10]} 34. Kd1 {[%clk 0:01:16]}  c3 {[%clk 0:01:03]} 35. a6 {[%clk 0:01:07]}  Ra2 {[%clk 0:00:58]} 36. Rxf6 {[%clk 0:01:06]}  Kc4 {[%clk 0:00:55]} 37. Rc6+ {[%clk 0:00:52]}  Kb3 {[%clk 0:00:42]} 38. Rb6+ {[%clk 0:00:51]}  Kc4 {[%clk 0:00:41]} 39. h4 {[%clk 0:00:41]}  Rxf2 {[%clk 0:00:35]} 40. a7 {[%clk 0:00:40]}  Ra2 {[%clk 0:00:34]} 41. Rb7 {[%clk 0:00:40]}  Kd3 {[%clk 0:00:33]} 42. Rd7+ {[%clk 0:00:38]}  Kxe3 {[%clk 0:00:33]} 43. Rxf7 {[%clk 0:00:27]}  Kd3 {[%clk 0:00:30]} 44. Rd7+ {[%clk 0:00:27]}  Ke3 {[%clk 0:00:30]} 45. h5 {[%clk 0:00:23]}  Kf3 {[%clk 0:00:05]} 46. h6 {[%clk 0:00:22]}  Kxg3 {[%clk 0:00:05]} 47. h7 {[%clk 0:00:23]}  c2+ {[%clk 0:00:03]} 48. Kc1 {[%clk 0:00:22]}  Rxa7 {[%clk 0:00:01]} 49. Rxa7 {[%clk 0:00:22]} 1-0


[Site "https://www.chess.com"]

[Event "Titled Tuesday Blitz November 08 Late 2022"]
[White "Estrada Nieto, Julian"]
[Black "Liu, Kelsey"]
[WhiteFideId "5101018"]
[BlackFideId "30944481"]
[WhiteElo "2221"]
[BlackElo "2345"]
[Result "1-0"]
[Round "10"]
[TimeControl "180+1"]
[Date "2022.11.09"]
[WhiteClock "0:00:53"]
[BlackClock "0:00:02"]

1. e4 {[%clk 0:03:00]}  c5 {[%clk 0:02:59]} 2. Nf3 {[%clk 0:02:59]}  e6 {[%clk 0:02:59]} 3. c3 {[%clk 0:02:59]}  Nf6 {[%clk 0:02:58]} 4. e5 {[%clk 0:03:00]}  Nd5 {[%clk 0:02:59]} 5. Bc4 {[%clk 0:03:00]}  Nb6 {[%clk 0:02:56]} 6. Bb3 {[%clk 0:02:59]}  c4 {[%clk 0:02:57]} 7. Bc2 {[%clk 0:02:59]}  Nc6 {[%clk 0:02:52]} 8. d4 {[%clk 0:02:59]}  cxd3 {[%clk 0:02:51]} 9. Qxd3 {[%clk 0:02:59]}  d6 {[%clk 0:02:47]} 10. exd6 {[%clk 0:03:00]}  Bxd6 {[%clk 0:02:48]} 11. O-O {[%clk 0:02:59]}  Bc7 {[%clk 0:02:14]} 12. Qe2 {[%clk 0:02:53]}  Bd7 {[%clk 0:02:13]} 13. Na3 {[%clk 0:02:46]}  a6 {[%clk 0:01:47]} 14. Bg5 {[%clk 0:02:42]}  f6 {[%clk 0:01:47]} 15. Bd2 {[%clk 0:02:26]}  Qe7 {[%clk 0:01:47]} 16. Rfe1 {[%clk 0:02:19]}  O-O-O {[%clk 0:01:46]} 17. Bb3 {[%clk 0:02:16]}  e5 {[%clk 0:01:44]} 18. Nc4 {[%clk 0:02:12]}  Nxc4 {[%clk 0:01:41]} 19. Bxc4 {[%clk 0:02:12]}  Bg4 {[%clk 0:01:30]} 20. Rad1 {[%clk 0:01:38]}  Rde8 {[%clk 0:01:09]} 21. Bd5 {[%clk 0:01:26]}  f5 {[%clk 0:00:24]} 22. Bxc6 {[%clk 0:01:24]}  bxc6 {[%clk 0:00:24]} 23. Qxa6+ {[%clk 0:01:24]}  Kb8 {[%clk 0:00:24]} 24. Be3 {[%clk 0:01:04]}  Bd6 {[%clk 0:00:09]} 25. Qxc6 {[%clk 0:00:56]}  e4 {[%clk 0:00:04]} 26. Rxd6 {[%clk 0:00:54]}  exf3 {[%clk 0:00:02]} 27. Rd7 {[%clk 0:00:53]} 1-0


[Site "https://www.chess.com"]

[Event "Titled Tuesday Blitz November 08 Late 2022"]
[White "Ezat, Mohamed"]
[Black "Vlassov, Nikolai"]
[WhiteFideId "10600906"]
[BlackFideId "4103360"]
[WhiteElo "2386"]
[BlackElo "2324"]
[Result "1-0"]
[Round "10"]
[TimeControl "180+1"]
[Date "2022.11.09"]
[WhiteClock "0:01:21"]
[BlackClock "0:01:06"]

1. d4 {[%clk 0:03:00]}  Nf6 {[%clk 0:02:58]} 2. c4 {[%clk 0:03:01]}  Nc6 {[%clk 0:02:58]} 3. Nf3 {[%clk 0:02:58]}  e6 {[%clk 0:02:58]} 4. Nc3 {[%clk 0:02:56]}  Bb4 {[%clk 0:02:57]} 5. Qc2 {[%clk 0:02:51]}  d6 {[%clk 0:02:57]} 6. e3 {[%clk 0:02:47]}  O-O {[%clk 0:02:55]} 7. a3 {[%clk 0:02:47]}  Bxc3+ {[%clk 0:02:55]} 8. Qxc3 {[%clk 0:02:47]}  a5 {[%clk 0:02:53]} 9. b3 {[%clk 0:02:44]}  Qe7 {[%clk 0:02:52]} 10. Bb2 {[%clk 0:02:44]}  Re8 {[%clk 0:02:52]} 11. O-O-O {[%clk 0:02:40]}  e5 {[%clk 0:02:51]} 12. Be2 {[%clk 0:02:36]}  Bg4 {[%clk 0:02:38]} 13. d5 {[%clk 0:02:30]}  Nb8 {[%clk 0:02:30]} 14. Qc2 {[%clk 0:02:23]}  Nbd7 {[%clk 0:02:28]} 15. Nh4 {[%clk 0:02:19]}  Bxe2 {[%clk 0:02:23]} 16. Qxe2 {[%clk 0:02:18]}  Nc5 {[%clk 0:02:24]} 17. Qc2 {[%clk 0:02:16]}  Nfe4 {[%clk 0:02:16]} 18. Nf5 {[%clk 0:02:12]}  Qg5 {[%clk 0:02:13]} 19. g4 {[%clk 0:02:10]}  g6 {[%clk 0:01:58]} 20. h4 {[%clk 0:01:56]}  Qf6 {[%clk 0:01:57]} 21. Nh6+ {[%clk 0:01:51]}  Kg7 {[%clk 0:01:57]} 22. f4 {[%clk 0:01:39]}  Qe7 {[%clk 0:01:41]} 23. g5 {[%clk 0:01:37]}  f6 {[%clk 0:01:33]} 24. h5 {[%clk 0:01:25]}  Ng3 {[%clk 0:01:16]} 25. hxg6 {[%clk 0:01:23]}  Nxh1 {[%clk 0:01:13]} 26. Nf5+ {[%clk 0:01:21]}  Kf8 {[%clk 0:01:06]} 27. Nxe7 {[%clk 0:01:21]}  Rxe7 {[%clk 0:01:06]} 28. gxf6 {[%clk 0:01:21]} 1-0


[Site "https://www.chess.com"]

[Event "Titled Tuesday Blitz November 08 Late 2022"]
[White "Fernandez De La Vara, Arnaldo"]
[Black "Veiga, Jose Francisco R P Neves"]
[WhiteFideId "3518388"]
[BlackFideId "1930087"]
[WhiteElo "2387"]
[BlackElo "2320"]
[Result "0-1"]
[Round "10"]
[TimeControl "180+1"]
[Date "2022.11.08"]
[WhiteClock "0:00:01"]
[BlackClock "0:00:38"]

1. Nf3 {[%clk 0:01:56]}  Nf6 {[%clk 0:02:58]} 2. g3 {[%clk 0:01:57]}  g6 {[%clk 0:02:58]} 3. b3 {[%clk 0:01:57]}  Bg7 {[%clk 0:02:59]} 4. Bb2 {[%clk 0:01:58]}  O-O {[%clk 0:03:00]} 5. Bg2 {[%clk 0:01:58]}  c5 {[%clk 0:03:00]} 6. c4 {[%clk 0:01:58]}  Nc6 {[%clk 0:02:59]} 7. O-O {[%clk 0:01:58]}  d5 {[%clk 0:02:57]} 8. cxd5 {[%clk 0:01:58]}  Nxd5 {[%clk 0:02:57]} 9. Bxg7 {[%clk 0:01:59]}  Kxg7 {[%clk 0:02:58]} 10. d4 {[%clk 0:02:00]}  Ndb4 {[%clk 0:02:51]} 11. a3 {[%clk 0:01:55]}  Na6 {[%clk 0:02:49]} 12. d5 {[%clk 0:01:56]}  Ncb8 {[%clk 0:02:48]} 13. Nc3 {[%clk 0:01:47]}  Nc7 {[%clk 0:02:33]} 14. Nd2 {[%clk 0:01:45]}  e6 {[%clk 0:02:30]} 15. Nc4 {[%clk 0:01:43]}  exd5 {[%clk 0:02:26]} 16. Nxd5 {[%clk 0:01:44]}  Nc6 {[%clk 0:02:24]} 17. Rc1 {[%clk 0:01:38]}  Be6 {[%clk 0:02:23]} 18. Nxc7 {[%clk 0:01:32]}  Qxc7 {[%clk 0:02:22]} 19. Qd6 {[%clk 0:01:33]}  Qxd6 {[%clk 0:02:03]} 20. Nxd6 {[%clk 0:01:34]}  Nd4 {[%clk 0:01:48]} 21. Rxc5 {[%clk 0:01:34]}  Nxe2+ {[%clk 0:01:44]} 22. Kh1 {[%clk 0:01:34]}  Nd4 {[%clk 0:01:33]} 23. b4 {[%clk 0:01:34]}  b6 {[%clk 0:01:30]} 24. Rc7 {[%clk 0:01:19]}  Rad8 {[%clk 0:01:28]} 25. Nb7 {[%clk 0:00:57]}  Nb5 {[%clk 0:01:27]} 26. Nxd8 {[%clk 0:00:48]}  Nxc7 {[%clk 0:01:27]} 27. Nxe6+ {[%clk 0:00:48]}  Nxe6 {[%clk 0:01:27]} 28. Rc1 {[%clk 0:00:47]}  Rd8 {[%clk 0:01:27]} 29. Be4 {[%clk 0:00:36]}  Rd2 {[%clk 0:01:24]} 30. Kg2 {[%clk 0:00:36]}  h5 {[%clk 0:01:20]} 31. h4 {[%clk 0:00:36]}  Ra2 {[%clk 0:01:15]} 32. Rc3 {[%clk 0:00:36]}  Kf6 {[%clk 0:01:11]} 33. Bd5 {[%clk 0:00:36]}  Ra1 {[%clk 0:01:10]} 34. Kf3 {[%clk 0:00:21]}  Ke5 {[%clk 0:00:54]} 35. Bc4 {[%clk 0:00:18]}  Nd4+ {[%clk 0:00:51]} 36. Kg2 {[%clk 0:00:16]}  f5 {[%clk 0:00:50]} 37. Re3+ {[%clk 0:00:13]}  Kf6 {[%clk 0:00:50]} 38. Rd3 {[%clk 0:00:11]}  Ke5 {[%clk 0:00:47]} 39. Re3+ {[%clk 0:00:09]}  Kf6 {[%clk 0:00:47]} 40. f4 {[%clk 0:00:07]}  a5 {[%clk 0:00:43]} 41. Rd3 {[%clk 0:00:05]}  Nc2 {[%clk 0:00:42]} 42. Rd6+ {[%clk 0:00:05]}  Kg7 {[%clk 0:00:42]} 43. Rd7+ {[%clk 0:00:05]}  Kh8 {[%clk 0:00:37]} 44. bxa5 {[%clk 0:00:04]}  Ne3+ {[%clk 0:00:37]} 45. Kf3 {[%clk 0:00:02]}  Nxc4 {[%clk 0:00:37]} 46. a6 {[%clk 0:00:01]}  Rxa3+ {[%clk 0:00:38]} 47. Kf2 {[%clk 0:00:01]}  Rxa6 {[%clk 0:00:38]} 0-1


[Site "https://www.chess.com"]